bitfinex/quotes_ETHUSD_20250803
["timestamp","ask_amount","ask_price","bid_price","bid_amount"]
[1754224348670,0.001,3495.2,3495.0,4.97772]
[1754224348870,0.001,3495.2,3495.1,0.497772]
[1754224349654,0.001,3495.2,3495.1,1.551972]
[1754224349849,0.001,3495.2,3495.1,5.4352]
[1754224350172,0.001,3495.2,3495.1,4.5242]
[1754224350358,0.9682,3495.2,3495.1,0.1432]
[1754224350700,0.9682,3495.2,3494.5,0.114703]
[1754224350871,0.9672,3495.1,3494.6,4.381]
[1754224351037,0.001,3495.2,3494.2,4.38]
[1754224351038,0.9672,3495.0,3494.2,4.38]
[1754224351234,0.1884307,3495.0,3494.2,4.38]
[1754224351434,0.001,3495.2,3493.2,6.88]
[1754224351435,0.55,3494.8,3493.2,6.88]
[1754224351664,0.9672,3494.7,3493.3,4.381]
[1754224351851,0.9672,3494.6,3493.3,4.381]
[1754224352047,0.55,3495.0,3493.3,4.381]
[1754224352246,0.9672,3494.5,3493.4,1.14042]
[1754224352454,0.9672,3494.4,3493.4,1.14042]
[1754224352656,0.9672,3494.3,3493.4,1.14042]
[1754224352850,0.9672,3494.2,3493.4,1.14998454]
[1754224353043,0.4713,3494.2,3493.5,5.635462]
[1754224353243,0.4959,3494.1,3493.2,6.88]
[1754224353489,0.4713,3494.0,3493.3,4.382]
[1754224353790,0.4959,3493.9,3493.3,4.382]
[1754224354172,0.4713,3493.8,3493.3,4.382]
[1754224354395,0.4713,3493.8,3493.4,1.1262]
[1754224354396,0.4959,3493.7,3493.4,1.1262]
[1754224354871,0.4713,3493.6,3493.4,1.1262]
[1754224355045,30.0,3495.1,3493.4,1.1262]
[1754224355240,0.9672,3493.5,3493.4,1.1262]
[1754224356147,0.4959,3493.9,3493.4,1.5958]
[1754224356340,0.9672,3493.8,3493.4,1.1262]
[1754224356545,0.9672,3493.8,3493.2,6.88]
[1754224356546,0.9672,3493.7,3493.5,4.383]
[1754224356781,3.55,3494.9,3493.5,4.383]
[1754224356782,0.9672,3493.6,3493.5,4.383]
[1754224359473,0.4713,3493.6,3493.5,4.383]
[1754224360379,0.9672,3493.6,3493.5,4.383]
[1754224361964,0.001,3495.2,3493.5,4.383]
[1754224361965,0.4959,3493.9,3493.5,5.5093]
[1754224362171,0.9672,3493.9,3493.5,5.5093]
[1754224362388,0.4959,3494.2,3493.5,5.5093]
[1754224362588,0.4713,3494.1,3493.6,10.5460759]
[1754224362799,0.4713,3494.0,3493.7,1.65249759]
[1754224363001,0.55,3495.1,3493.8,4.383]
[1754224363302,0.9672,3493.9,3493.8,14.9290759]
[1754224365167,0.9672,3493.9,3493.8,10.5460759]
[1754224365366,0.9672,3493.9,3493.8,14.9290759]
[1754224365803,0.9672,3493.9,3493.8,4.383]
[1754224368271,0.9672,3493.9,3493.8,4.381]
[1754224369211,0.9672,3493.9,3493.4,3.3480759]
[1754224369408,0.4959,3493.8,3493.5,6.12380759]
[1754224369611,0.4959,3493.7,3493.5,6.12380759]
[1754224369773,0.9672,3493.7,3493.6,3.3460759]
[1754224372200,0.55,3495.1,3493.6,3.3460759]
[1754224372506,0.9672,3494.0,3493.7,7.7280759]
[1754224372711,0.9672,3494.5,3493.8,4.76276425]
[1754224373511,0.9672,3494.5,3493.9,3.3460759]
[1754224373715,0.9672,3494.5,3494.0,4.381]
[1754224374007,0.9672,3494.5,3494.0,4.8506]
[1754224374615,0.9672,3494.5,3494.1,0.4696]
[1754224374910,0.001,3495.2,3494.1,0.92393107]
[1754224375215,0.4713,3494.9,3494.2,0.4696]
[1754224375425,0.001,3495.2,3494.3,4.381]
[1754224375722,0.9672,3495.1,3494.3,4.381]
[1754224375878,0.001,3495.2,3494.4,0.57649764]
[1754224376211,0.9672,3495.0,3494.4,0.57649764]
[1754224376411,0.55,3494.8,3493.6,0.4696]
[1754224376710,0.55,3494.8,3493.7,4.382]
[1754224376711,0.9672,3494.7,3493.7,4.382]
[1754224376916,0.4713,3494.7,3493.7,4.382]
[1754224377072,0.9672,3494.7,3493.8,0.47915723]
[1754224377276,0.001,3495.2,3493.8,0.47915723]
[1754224377506,0.9672,3495.0,3493.9,0.48611572]
[1754224377830,0.9672,3495.0,3494.0,0.911]
[1754224378114,0.9672,3495.0,3494.1,4.8526]
[1754224378410,0.9672,3495.0,3494.2,0.4696]
[1754224378615,0.4607,3494.9,3494.2,0.4696]
[1754224378912,0.4607,3494.9,3494.3,0.5294]
[1754224379810,0.4607,3494.9,3494.1,4.383]
[1754224379988,0.9266,3494.9,3494.2,0.4655]
[1754224380583,0.96236742,3494.8,3494.1,4.383]
[1754224380783,0.9266,3494.7,3494.1,4.383]
[1754224381101,0.9266,3494.6,3494.1,4.383]
[1754224381302,0.55,3495.1,3494.2,0.48485]
[1754224381508,0.9266,3494.5,3493.7,3.4892759]
[1754224381699,0.9266,3494.5,3493.8,4.382]
[1754224381700,0.4659,3494.5,3493.8,4.382]
[1754224381880,0.4607,3494.4,3493.8,4.382]
[1754224382192,0.4607,3494.9,3493.9,0.4655]
[1754224382379,0.55,3494.8,3493.9,1.38475]
[1754224382581,0.9266,3494.9,3494.0,0.4655]
[1754224382789,0.4659,3494.9,3494.0,0.4655]
[1754224383115,0.4607,3494.8,3494.1,0.576675]
[1754224384094,0.4659,3494.7,3494.1,0.576675]
[1754224384321,0.4607,3494.6,3494.2,4.382]
[1754224384483,0.4659,3494.5,3494.2,4.382]
[1754224384685,0.9266,3494.4,3494.2,4.382]
[1754224385018,0.55,3495.0,3493.7,0.1432]
[1754224385183,0.9266,3494.3,3493.5,1.74480759]
[1754224385387,0.9266,3494.2,3493.6,4.382]
[1754224385611,0.9266,3494.2,3493.6,4.8475]
[1754224385926,0.9266,3494.2,3493.7,0.65943076]
[1754224386415,0.4659,3494.1,3493.7,1.12493076]
[1754224386622,0.4659,3494.1,3493.8,3.3460759]
[1754224386623,0.9266,3494.1,3493.8,3.3460759]
[1754224386824,0.4659,3494.4,3493.8,3.3460759]
[1754224387119,0.4659,3494.4,3493.7,0.65943076]
[1754224387120,0.4607,3494.3,3493.9,3.3460759]
[1754224387323,0.03576435,3495.1,3494.0,3.3460759]
[1754224387622,0.9266,3494.2,3494.1,4.381]
[1754224389619,0.9266,3494.2,3494.0,4.381]
[1754224390114,0.4659,3494.2,3494.0,4.381]
[1754224391020,0.9266,3494.4,3494.0,4.381]
[1754224391222,0.9266,3494.3,3494.0,4.381]
[1754224391915,0.9266,3494.6,3494.0,4.381]
[1754224392127,0.9266,3494.6,3494.0,4.8465]
[1754224392330,0.4607,3494.5,3494.0,4.8465]
[1754224392634,0.9266,3494.4,3494.0,4.8465]
[1754224393527,0.9266,3494.3,3494.0,7.7270759]
[1754224395037,0.9266,3494.9,3494.1,0.9]
[1754224395331,0.55,3494.7,3494.2,4.381]
[1754224395629,0.9266,3494.6,3494.2,4.381]
[1754224395852,0.001,3495.2,3494.2,4.381]
[1754224396127,0.9266,3494.5,3494.3,3.3460759]
[1754224396328,0.001,3494.7,3494.4,3.3460759]
[1754224396533,0.551,3494.7,3494.4,3.3460759]
[1754224396706,0.1215197,3494.6,3494.4,3.3460759]
[1754224396889,0.9266,3494.5,3494.4,3.3460759]
[1754224397331,0.001,3494.7,3494.4,3.8115759]
[1754224397532,0.001,3494.7,3494.5,0.77270759]
[1754224397705,0.001,3494.7,3494.5,0.4655]
[1754224398538,0.001,3494.7,3494.5,4.381]
[1754224398689,0.001,3494.7,3494.6,0.4655]
[1754224399450,0.001,3494.7,3494.6,3.8115759]
[1754224400844,0.001,3494.7,3494.5,4.381]
[1754224401044,0.001,3494.7,3494.5,4.86565]
[1754224401342,0.001,3494.7,3494.5,4.8465]
[1754224401549,0.001,3494.7,3494.6,0.4655]
[1754224406117,0.001,3494.7,3494.5,4.381]
[1754224406648,0.001,3494.7,3494.5,4.8465]
[1754224407853,0.001,3494.7,3494.5,4.381]
[1754224408154,0.001,3494.7,3494.6,0.94705]
[1754224408719,0.001,3494.7,3494.6,0.48155]
[1754224408919,0.001,3494.7,3494.6,4.86155]
[1754224409166,0.001,3494.7,3494.6,5.33625]
[1754224409532,0.001,3494.7,3494.6,5.77065]
[1754224410132,0.001,3494.7,3494.6,9.1167259]
[1754224412157,0.001,3494.7,3494.6,5.33625]
[1754224412318,0.001,3494.7,3494.6,5.77065]
[1754224416335,0.001,3494.7,3494.6,9.1167259]
[1754224418738,0.001,3494.7,3494.6,9.2599259]
[1754224420832,0.001,3494.7,3494.6,3.9708259]
[1754224421037,0.001,3494.7,3494.6,8.8245259]
[1754224421551,0.001,3494.7,3494.6,9.2589259]
[1754224423964,0.001,3494.7,3494.6,16.4589259]
[1754224426571,0.001,3494.7,3494.6,19.4589259]
[1754224427347,0.001,3495.5,3494.7,3.0]
[1754224427547,0.001,3495.5,3494.9,3.0]
[1754224427884,0.001,3495.5,3495.3,0.1432]
[1754224428040,0.001,3495.5,3495.4,4.379]
[1754224428356,0.9481,3495.4,3495.1,3.4912]
[1754224428700,0.9481,3495.3,3495.2,4.379]
[1754224429394,0.9481,3495.3,3495.1,0.63460759]
[1754224429600,0.9481,3495.3,3495.2,4.378]
[1754224431866,0.9481,3495.3,3495.2,7.378]
[1754224433460,0.9481,3495.3,3495.2,10.7240759]
[1754224437723,0.9481,3495.3,3495.2,7.7240759]
[1754224438804,0.9481,3495.3,3495.2,3.3460759]
[1754224439121,0.9481,3495.3,3495.2,7.7240759]
[1754224440021,0.9491,3495.3,3495.2,7.7240759]
[1754224441373,0.001,3495.3,3495.2,8.49648349]
[1754224442404,0.9434,3495.3,3495.2,8.49648349]
[1754224442772,0.001,3495.3,3495.2,8.49648349]
[1754224443414,0.9434,3495.3,3495.2,8.49648349]
[1754224443610,0.9434,3495.3,3495.2,7.7240759]
[1754224443993,0.9434,3495.3,3495.2,4.378]
[1754224444508,0.001,3495.3,3495.2,4.378]
[1754224445504,0.9434,3495.3,3495.2,4.378]
[1754224446009,0.4618,3495.3,3495.2,4.378]
[1754224446627,0.001,3495.3,3495.2,4.378]
[1754224447629,0.001,3495.3,3495.2,5.81754]
[1754224449127,0.001,3495.3,3495.2,5.36404]
[1754224449624,0.001,3495.3,3495.2,5.81754]
[1754224451676,0.001,3495.3,3495.2,5.932227]
[1754224452991,0.001,3495.3,3495.2,8.932227]
[1754224453734,0.001,3495.3,3495.2,3.602327]
[1754224453931,0.001,3495.3,3495.1,0.1432]
[1754224454088,0.4618,3495.3,3495.2,4.377]
[1754224454934,0.9434,3495.3,3495.2,4.377]
[1754224458218,0.9434,3495.3,3494.8,3.3480759]
[1754224458426,0.97816333,3495.2,3494.8,0.002]
[1754224458721,0.55,3495.1,3494.8,0.002]
[1754224458920,0.55,3494.9,3494.6,0.002]
[1754224459216,0.55,3494.7,3494.1,0.002]
[1754224459419,0.55,3494.5,3494.1,0.002]
[1754224459891,0.55,3494.3,3494.1,0.002]
[1754224460087,0.9424,3494.4,3494.1,0.002]
[1754224460291,0.9424,3494.2,3494.1,0.002]
[1754224462027,0.4816,3494.7,3494.1,0.5004]
[1754224463032,0.4608,3494.8,3494.1,0.5004]
[1754224463516,0.4816,3494.7,3494.1,0.002]
[1754224463711,0.4816,3494.7,3494.2,0.4816]
[1754224463894,0.4608,3494.6,3494.2,0.4816]
[1754224464095,0.001,3495.3,3494.2,0.4816]
[1754224464305,0.9424,3494.5,3494.2,0.4816]
[1754224464829,0.9424,3494.4,3494.2,0.4816]
[1754224464991,0.9424,3494.3,3494.2,4.8586]
[1754224465192,0.9424,3494.3,3494.2,0.4816]
[1754224465396,0.9424,3494.3,3494.1,0.002]
[1754224465595,0.9424,3494.2,3494.1,0.002]
[1754224469262,1.4924,3494.2,3494.1,0.002]
[1754224469406,1.64164,3494.2,3494.1,0.002]
[1754224471205,1.67741356,3494.2,3494.1,0.002]
[1754224471410,31.67741356,3494.2,3494.1,0.002]
[1754224471654,34.64164,3494.2,3494.1,0.002]
[1754224474820,34.76232342,3494.2,3494.1,0.002]
[1754224475142,34.64164,3494.2,3494.1,0.002]
[1754224477032,39.02064,3494.2,3494.1,0.002]
[1754224477216,39.14122761,3494.2,3494.1,0.002]
[1754224481145,4.21222761,3494.2,3494.1,0.002]
[1754224481344,7.68460117,3494.2,3494.1,0.002]
[1754224481551,8.07824,3494.2,3494.1,0.002]
[1754224481854,9.02734,3494.2,3494.1,0.002]
[1754224482245,9.1479563,3494.2,3494.1,0.002]
[1754224482452,9.02734,3494.2,3494.1,0.002]
[1754224482650,9.14795584,3494.2,3494.1,0.002]
[1754224482962,9.02734,3494.2,3494.1,0.002]
[1754224483826,8.07824,3494.2,3494.1,0.002]
[1754224484160,3.69924,3494.2,3494.1,0.002]
[1754224484551,3.55,3494.2,3494.1,0.4855]
[1754224487162,4.4991,3494.2,3494.1,0.002]
[1754224487367,4.53487356,3494.2,3494.1,0.002]
[1754224487667,4.65592157,3494.2,3494.1,0.002]
[1754224487964,34.65592157,3494.2,3494.1,0.002]
[1754224488166,37.06290259,3494.2,3494.1,0.002]
[1754224488368,41.72910259,3494.2,3494.1,0.002]
[1754224488558,41.36299558,3494.2,3494.1,0.002]
[1754224490954,41.00734801,3494.2,3494.1,0.002]
[1754224491567,40.72014801,3494.2,3494.1,0.002]
[1754224492471,35.79114801,3494.2,3494.1,0.002]
[1754224492661,7.50104801,3494.2,3494.1,0.002]
[1754224492858,38.05104801,3494.2,3494.1,0.002]
[1754224493058,40.72114801,3494.2,3494.1,0.002]
[1754224496975,40.72128552,3494.2,3494.1,0.002]
[1754224497570,41.36413309,3494.2,3494.1,0.002]
[1754224499873,41.36424119,3494.2,3494.1,0.002]
[1754224500273,41.00859362,3494.2,3494.1,0.002]
[1754224501696,7.50129362,3494.2,3494.1,0.002]
[1754224501862,7.50129362,3494.2,3494.1,0.4588]
[1754224502357,8.25142298,3494.2,3494.1,0.4588]
[1754224502558,8.80142298,3494.2,3494.1,0.4588]
[1754224503982,8.25142298,3494.2,3494.1,0.9228]
[1754224504198,8.05129362,3494.2,3494.1,0.9228]
[1754224504484,7.50142303,3494.2,3494.1,0.9228]
[1754224504686,3.12142303,3494.2,3494.1,0.9228]
[1754224504896,4.50142303,3494.2,3494.1,0.9228]
[1754224505062,7.50142303,3494.2,3494.1,0.9228]
[1754224505262,8.05142303,3494.2,3494.1,0.9228]
[1754224506302,8.85656533,3494.2,3494.1,0.002]
[1754224508304,39.28996533,3494.2,3494.1,0.002]
[1754224508466,39.77406533,3494.2,3494.1,0.002]
[1754224508662,8.85656533,3494.2,3494.1,0.002]
[1754224508869,3.12142303,3494.2,3494.1,0.9228]
[1754224509324,0.12142303,3494.2,3494.1,0.9228]
[1754224509522,3.12142303,3494.4,3494.1,0.9228]
[1754224509720,0.12142303,3494.3,3494.1,0.9228]
[1754224510017,0.12142303,3494.3,3494.2,0.9208]
[1754224510167,0.12140765,3494.3,3494.2,0.9208]
[1754224510725,0.15718019,3494.3,3494.2,0.4568]
[1754224510901,3.55,3494.2,3494.1,0.002]
[1754224511071,3.67140765,3494.2,3494.1,0.002]
[1754224511475,36.30990765,3494.2,3494.1,0.002]
[1754224515211,9.77140765,3494.2,3494.1,0.4588]
[1754224516675,9.77140765,3494.2,3494.1,0.002]
[1754224516870,41.32000081,3494.2,3494.1,0.002]
[1754224518715,41.32006076,3494.2,3494.1,0.002]
[1754224522915,41.67570833,3494.2,3494.1,0.002]
[1754224524429,40.40757692,3494.2,3494.1,0.002]
[1754224525714,40.40757692,3494.2,3494.1,0.4588]
[1754224527617,38.68557692,3494.2,3494.1,0.4588]
[1754224528298,38.68557692,3494.2,3494.1,0.002]
[1754224530040,38.68563364,3494.2,3494.1,0.002]
[1754224530345,38.68563316,3494.2,3494.1,0.002]
[1754224531321,39.61083316,3494.2,3494.1,0.002]
[1754224531526,41.33183316,3494.2,3494.1,0.002]
[1754224532214,40.40663316,3494.2,3494.1,0.002]
[1754224533003,40.28509316,3494.2,3494.1,0.002]
[1754224533333,40.40665835,3494.2,3494.1,0.002]
[1754224535896,36.02365835,3494.2,3494.1,0.002]
[1754224536245,33.12158293,3494.2,3494.1,0.4548]
[1754224536395,37.50058293,3494.2,3494.1,0.4548]
[1754224536602,38.05058293,3494.2,3494.1,0.4548]
[1754224537147,38.05058293,3494.2,3494.1,0.002]
[1754224537442,38.97578293,3494.2,3494.1,0.002]
[1754224537643,38.05058293,3494.2,3494.1,0.002]
[1754224537801,38.05058293,3494.2,3494.0,0.00103652]
[1754224538007,0.67158293,3494.1,3494.0,0.00103652]
[1754224538314,0.67158293,3494.1,3494.0,0.45383652]
[1754224538640,8.05058293,3494.1,3494.0,0.45383652]
[1754224539399,0.12158293,3494.1,3494.0,0.91953652]
[1754224539614,0.12158293,3494.5,3494.0,0.91953652]
[1754224539814,4.38,3494.6,3494.1,0.9185]
[1754224539815,0.001,3494.6,3494.1,0.9185]
[1754224540125,0.001,3494.6,3494.2,0.9185]
[1754224540321,0.001,3494.6,3494.0,0.00103652]
[1754224540521,0.001,3494.6,3494.3,0.9185]
[1754224540737,0.001,3494.6,3494.4,0.9185]
[1754224540937,0.001,3494.6,3494.5,0.4528]
[1754224541242,0.001,3494.6,3494.5,0.9185]
[1754224541615,0.001,3494.6,3494.2,0.4657]
[1754224541808,0.001,3494.6,3494.3,0.4528]
[1754224542361,0.001,3494.6,3494.4,0.4528]
[1754224542564,0.001,3494.6,3494.4,0.9185]
[1754224542755,0.001,3494.6,3494.4,0.4528]
[1754224542955,0.001,3494.6,3494.5,0.4528]
[1754224544173,7.381,3494.6,3494.5,0.4528]
[1754224544467,7.381,3494.6,3494.5,0.9185]
[1754224545271,0.001,3494.6,3494.5,0.9185]
[1754224549288,0.001,3494.6,3494.5,0.4528]
[1754224550053,0.001,3494.6,3494.2,0.9185]
[1754224550370,0.001,3494.6,3494.3,0.4528]
[1754224550693,0.001,3494.6,3494.3,0.9185]
[1754224550853,0.001,3494.6,3494.4,0.4528]
[1754224551050,0.001,3494.6,3494.4,0.9185]
[1754224551267,0.001,3494.6,3494.5,0.4528]
[1754224552069,0.001,3494.6,3494.5,0.9185]
[1754224554496,0.001,3494.6,3494.5,4.2645759]
[1754224554661,0.001,3494.6,3494.5,4.69103349]
[1754224557283,0.001,3494.6,3494.5,3.77253349]
[1754224557494,0.001,3494.6,3494.5,4.69103349]
[1754224558200,0.001,3494.6,3494.5,4.22533349]
[1754224558571,0.001,3494.6,3494.5,4.67083349]
[1754224558904,0.001,3494.6,3494.5,3.77253349]
[1754224559073,0.001,3494.6,3494.5,3.3460759]
[1754224566005,0.9199,3494.6,3494.5,3.3460759]
[1754224566187,0.001,3494.6,3494.5,3.3460759]
[1754224566708,0.9199,3494.6,3494.5,3.3460759]
[1754224566873,0.001,3494.6,3494.5,3.3460759]
[1754224568004,0.001,3494.6,3494.2,3.8375759]
[1754224568306,0.001,3494.6,3494.3,0.4915]
[1754224571406,0.001,3494.6,3494.4,4.2830759]
[1754224571914,0.001,3494.6,3494.5,4.2830759]
[1754224573783,0.001,3494.6,3494.5,0.937]
[1754224574114,0.001,3494.6,3494.5,1.11733112]
[1754224576483,0.001,3494.6,3494.5,1.12688023]
[1754224576685,0.001,3494.6,3494.5,1.11733112]
[1754224580210,0.001,3494.6,3494.5,0.67183112]
[1754224580708,0.001,3494.6,3494.5,4.55733112]
[1754224581534,0.9199,3494.6,3494.5,0.18033112]
[1754224581837,0.9199,3494.6,3494.4,4.377]
[1754224582036,0.4377,3494.6,3494.4,4.377]
[1754224582333,0.4822,3494.5,3494.4,4.377]
[1754224582532,0.4822,3494.5,3494.4,4.9009413]
[1754224582731,0.9189,3494.5,3494.4,0.5239413]
[1754224582903,0.001,3494.6,3494.3,4.377]
[1754224583312,0.001,3494.6,3494.3,4.8685]
[1754224583670,0.001,3494.6,3494.4,0.4822]
[1754224583838,0.9189,3494.5,3494.4,0.4822]
[1754224584431,0.9189,3494.5,3494.2,4.376]
[1754224584738,0.9189,3494.4,3494.2,4.376]
[1754224584938,0.95467254,3494.3,3494.1,0.002]
[1754224585110,0.9189,3494.2,3494.1,0.002]
[1754224585305,0.9189,3494.2,3494.1,0.862588]
[1754224585706,0.9189,3494.2,3494.1,0.002]
[1754224588350,0.9199,3494.6,3494.1,0.002]
[1754224588738,0.9172,3494.5,3494.1,0.002]
[1754224589623,0.9172,3494.4,3494.1,0.002]
[1754224590852,0.9172,3494.3,3494.1,0.002]
[1754224591054,0.001,3494.6,3494.1,0.002]
[1754224591213,0.001,3494.6,3494.2,0.4825]
[1754224591548,0.001,3494.6,3494.3,0.4663]
[1754224591844,0.001,3494.6,3494.3,4.8433]
[1754224592250,0.001,3494.6,3494.4,0.4825]
[1754224592744,0.001,3494.6,3494.5,0.597238]
[1754224593268,0.001,3494.6,3494.5,0.114738]
[1754224593554,0.001,3494.6,3494.1,0.002]
[1754224593853,0.9172,3494.5,3494.1,0.002]
[1754224594034,0.95297152,3494.4,3494.1,0.002]
[1754224594413,0.9172,3494.3,3494.1,0.002]
[1754224594837,0.95297356,3494.2,3494.1,0.002]
[1754224597619,0.95297356,3494.2,3494.1,3.3480759]
[1754224597819,0.9172,3494.2,3494.1,3.3480759]
[1754224602055,0.001,3494.6,3494.1,3.3480759]
[1754224602252,0.001,3494.6,3494.2,0.4825]
[1754224602658,0.4584,3494.6,3494.2,0.4825]
[1754224603557,0.4584,3494.6,3494.3,3.3460759]
[1754224605058,0.001,3494.6,3494.3,3.3460759]
[1754224605262,0.9172,3494.5,3494.3,3.3460759]
[1754224605460,0.4574,3494.5,3494.3,3.3460759]
[1754224605760,0.4608,3494.6,3494.3,3.3460759]
[1754224606059,0.001,3494.6,3494.3,3.3460759]
[1754224606359,0.4584,3494.6,3494.3,3.3460759]
[1754224606565,0.9182,3494.6,3494.3,3.3460759]
[1754224607867,0.9172,3494.5,3494.3,3.3460759]
[1754224608027,0.9172,3494.4,3494.3,3.3460759]
[1754224610180,0.9172,3494.4,3494.1,0.002]
[1754224610339,0.03577254,3494.3,3494.1,0.002]
[1754224610539,0.9172,3494.3,3494.1,0.002]
[1754224610768,1.50297356,3494.2,3494.1,0.002]
[1754224611090,1.59259569,3494.2,3494.1,0.002]
[1754224611652,1.55682213,3494.2,3494.1,0.002]
[1754224612560,0.08962213,3494.2,3494.1,0.9508]
[1754224612756,0.001,3494.6,3494.1,0.9508]
[1754224612962,0.001,3494.6,3494.1,0.002]
[1754224613136,0.001,3494.6,3494.2,0.4825]
[1754224613669,0.001,3494.6,3494.1,0.002]
[1754224613670,0.4574,3494.5,3494.1,0.002]
[1754224613876,0.9172,3494.4,3494.1,0.002]
[1754224614266,0.4584,3494.6,3494.1,0.002]
[1754224614440,0.09060731,3494.6,3494.1,0.002]
[1754224614646,0.4574,3494.5,3494.1,0.002]
[1754224614946,0.54700731,3494.5,3494.1,0.002]
[1754224615481,0.54700731,3494.5,3494.1,0.4845]
[1754224615883,0.54700731,3494.5,3494.1,0.002]
[1754224616087,0.58518906,3494.4,3494.1,0.002]
[1754224616378,0.08961754,3494.3,3494.1,0.002]
[1754224616681,1.00681754,3494.3,3494.1,0.002]
[1754224616877,0.08961754,3494.2,3494.1,0.002]
[1754224617244,0.9172,3494.2,3494.1,0.002]
[1754224617490,1.00681754,3494.2,3494.1,0.002]
[1754224624182,0.9172,3494.2,3494.1,0.002]
[1754224624358,1.00681976,3494.2,3494.1,0.002]
[1754224626102,1.0068203,3494.2,3494.1,0.002]
[1754224628097,0.0896203,3494.2,3494.1,0.002]
[1754224628252,0.0896203,3494.3,3494.1,0.002]
[1754224629104,0.5721203,3494.3,3494.1,0.002]
[1754224629303,0.0896203,3494.3,3494.2,0.486]
[1754224629626,0.08961971,3494.3,3494.2,0.486]
[1754224630324,0.08961971,3494.3,3494.1,0.002]
[1754224630630,1.01661971,3494.2,3494.1,0.002]
[1754224631841,0.57211971,3494.2,3494.1,0.002]
[1754224632190,1.01661971,3494.2,3494.1,0.002]
[1754224632714,0.08961971,3494.2,3494.1,0.002]
[1754224633093,0.57211971,3494.2,3494.1,0.002]
[1754224634154,1.01661971,3494.2,3494.1,0.002]
[1754224634301,1.41828168,3494.2,3494.1,0.002]
[1754224634619,1.01661971,3494.2,3494.1,0.002]
[1754224644590,1.56661971,3494.2,3494.1,0.002]
[1754224644790,4.56661971,3494.2,3494.1,0.002]
[1754224645091,4.60239327,3494.2,3494.1,0.002]
[1754224646290,4.60240037,3494.2,3494.1,0.002]
[1754224646500,37.22124041,3494.2,3494.1,0.002]
[1754224646654,42.271,3493.9,3493.8,0.002]
[1754224646863,39.73662681,3493.9,3493.8,0.002]
[1754224647062,40.66362681,3493.9,3493.8,0.002]
[1754224647263,41.15059795,3493.9,3493.8,0.002]
[1754224648986,41.15061965,3493.9,3493.8,0.002]
[1754224650214,41.75226722,3493.9,3493.8,0.002]
[1754224650510,42.07620756,3493.9,3493.8,0.002]
[1754224650808,41.75227688,3493.9,3493.8,0.002]
[1754224651007,41.43762931,3493.9,3493.8,0.002]
[1754224653184,36.77462931,3493.9,3493.8,0.002]
[1754224653388,35.87962931,3493.9,3493.8,0.002]
[1754224653611,0.57662931,3493.9,3493.8,0.002]
[1754224653915,36.42840594,3493.9,3493.8,0.002]
[1754224654218,40.56362931,3493.9,3493.8,0.002]
[1754224654516,41.75221722,3493.9,3493.8,0.002]
[1754224654812,41.66255905,3493.9,3493.8,0.002]
[1754224655011,41.75222118,3493.9,3493.8,0.002]
[1754224655492,42.03922118,3493.9,3493.8,0.002]
[1754224656478,42.31469535,3493.9,3493.8,0.002]
[1754224656823,35.558,3493.7,3493.6,0.002]
[1754224656974,40.66225004,3493.7,3493.6,0.002]
[1754224657175,44.80488619,3493.7,3493.6,0.002]
[1754224657418,44.80488619,3493.7,3491.2,0.002]
[1754224657419,42.02949865,3493.6,3491.2,0.002]
[1754224657580,43.43312661,3493.6,3491.2,0.002]
[1754224657779,43.92009775,3493.6,3491.3,0.4646]
[1754224657979,43.92009775,3493.6,3491.2,0.002]
[1754224658180,43.92009775,3493.6,3491.4,0.4646]
[1754224658475,41.05772084,3493.6,3491.4,0.4646]
[1754224658930,41.05772084,3493.6,3491.5,0.4646]
[1754224659731,35.271,3493.5,3491.5,0.4646]
[1754224660033,41.5417497,3493.5,3491.6,0.4666]
[1754224660242,42.43958974,3493.5,3491.6,0.4666]
[1754224660402,41.74532009,3493.5,3491.7,0.4577]
[1754224660603,38.19532009,3493.5,3492.1,0.4577]
[1754224660896,38.19532009,3493.5,3492.5,0.4646]
[1754224661095,38.74532009,3493.5,3492.5,0.4646]
[1754224661296,38.19532009,3493.5,3492.5,0.4646]
[1754224661513,41.74532009,3493.5,3491.9,0.4577]
[1754224661733,0.55,3492.4,3491.7,0.4646]
[1754224661934,3.55,3492.0,3491.7,0.4646]
[1754224662135,43.0,3491.7,3491.6,0.002]
[1754224662321,7.377,3491.7,3491.6,0.002]
[1754224662830,7.377,3491.7,3491.6,0.9243]
[1754224664866,7.378,3491.7,3491.6,0.9243]
[1754224665016,4.378,3491.7,3491.6,0.9243]
[1754224665212,4.378,3491.7,3491.6,4.2703759]
[1754224665406,4.378,3491.7,3491.6,4.69741349]
[1754224667282,4.378,3491.8,3491.6,4.69741349]
[1754224667480,4.378,3491.9,3491.7,0.9223]
[1754224667781,4.378,3491.9,3491.8,0.9223]
[1754224671564,0.55,3492.4,3491.8,0.9223]
[1754224671765,3.0,3492.2,3491.8,0.4577]
[1754224672068,3.0,3492.2,3491.9,0.9223]
[1754224672552,3.0,3492.2,3491.7,3.3460759]
[1754224672553,3.0,3492.2,3492.0,0.9223]
[1754224672956,3.0,3492.2,3492.1,0.9223]